[Event "Titled Tuesday Blitz April 19 Late 2022"]
[White "Noboa Silva, Kevin"]
[Black "Balint, Vilmos"]
[WhiteFideId "3618471"]
[BlackFideId "718050"]
[WhiteElo "2172"]
[BlackElo "2059"]
[Result "1-0"]
[Round "10"]
[TimeControl "180+1"]
[Date "2022.04.19"]
[WhiteClock "0:00:06"]
[BlackClock "0:00:29"]

1. e4 {[%clk 0:03:00]}  e6 {[%clk 0:02:57]} 2. d4 {[%clk 0:03:00]}  d5 {[%clk 0:02:58]} 3. Nd2 {[%clk 0:02:58]}  c5 {[%clk 0:02:53]} 4. exd5 {[%clk 0:02:57]}  exd5 {[%clk 0:02:53]} 5. dxc5 {[%clk 0:02:58]}  Bxc5 {[%clk 0:02:53]} 6. Ngf3 {[%clk 0:02:57]}  Nf6 {[%clk 0:02:53]} 7. Bb5+ {[%clk 0:02:56]}  Bd7 {[%clk 0:02:53]} 8. Qe2+ {[%clk 0:02:56]}  Qe7 {[%clk 0:02:52]} 9. Qxe7+ {[%clk 0:02:51]}  Bxe7 {[%clk 0:02:51]} 10. Bxd7+ {[%clk 0:02:51]}  Nbxd7 {[%clk 0:02:49]} 11. O-O {[%clk 0:02:52]}  O-O {[%clk 0:02:49]} 12. Nb3 {[%clk 0:02:47]}  Rac8 {[%clk 0:02:45]} 13. c3 {[%clk 0:02:47]}  Nb6 {[%clk 0:02:45]} 14. Re1 {[%clk 0:02:42]}  Bd6 {[%clk 0:02:43]} 15. Nbd4 {[%clk 0:02:35]}  Ne4 {[%clk 0:02:34]} 16. Nf5 {[%clk 0:02:31]}  Rfd8 {[%clk 0:02:20]} 17. Be3 {[%clk 0:02:13]}  g6 {[%clk 0:02:18]} 18. Nxd6 {[%clk 0:02:12]}  Rxd6 {[%clk 0:02:18]} 19. Bd4 {[%clk 0:02:10]}  Nc4 {[%clk 0:02:15]} 20. Re2 {[%clk 0:02:07]}  f6 {[%clk 0:02:14]} 21. h4 {[%clk 0:02:04]}  Kf7 {[%clk 0:02:14]} 22. g4 {[%clk 0:02:04]}  a5 {[%clk 0:02:09]} 23. Rd1 {[%clk 0:01:55]}  a4 {[%clk 0:02:08]} 24. Kg2 {[%clk 0:01:52]}  b5 {[%clk 0:02:05]} 25. g5 {[%clk 0:01:48]}  fxg5 {[%clk 0:01:59]} 26. Nxg5+ {[%clk 0:01:48]}  Nxg5 {[%clk 0:01:58]} 27. hxg5 {[%clk 0:01:48]}  Re6 {[%clk 0:01:53]} 28. Rxe6 {[%clk 0:01:47]}  Kxe6 {[%clk 0:01:53]} 29. b3 {[%clk 0:01:45]}  axb3 {[%clk 0:01:52]} 30. axb3 {[%clk 0:01:46]}  Na5 {[%clk 0:01:47]} 31. b4 {[%clk 0:01:39]}  Nc4 {[%clk 0:01:42]} 32. Rh1 {[%clk 0:01:36]}  Rc7 {[%clk 0:01:41]} 33. Kg3 {[%clk 0:01:27]}  Kf5 {[%clk 0:01:37]} 34. Bf6 {[%clk 0:01:23]}  Nd2 {[%clk 0:01:36]} 35. f3 {[%clk 0:01:23]}  d4 {[%clk 0:01:27]} 36. Re1 {[%clk 0:01:13]}  Nxf3 {[%clk 0:01:08]} 37. Kxf3 {[%clk 0:01:09]}  Rxc3+ {[%clk 0:01:07]} 38. Kf2 {[%clk 0:01:05]}  Rb3 {[%clk 0:01:07]} 39. Re5+ {[%clk 0:01:01]}  Kf4 {[%clk 0:01:07]} 40. Rxb5 {[%clk 0:01:01]}  d3 {[%clk 0:01:05]} 41. Rd5 {[%clk 0:00:56]}  Rxb4 {[%clk 0:00:56]} 42. Rxd3 {[%clk 0:00:56]}  Rb6 {[%clk 0:00:52]} 43. Rh3 {[%clk 0:00:52]}  h5 {[%clk 0:00:51]} 44. Rd3 {[%clk 0:00:43]}  Ra6 {[%clk 0:00:48]} 45. Kg2 {[%clk 0:00:42]}  Ra2+ {[%clk 0:00:47]} 46. Kh3 {[%clk 0:00:41]}  Re2 {[%clk 0:00:46]} 47. Rd6 {[%clk 0:00:20]}  Re3+ {[%clk 0:00:37]} 48. Kh2 {[%clk 0:00:19]}  Re2+ {[%clk 0:00:38]} 49. Kh3 {[%clk 0:00:19]}  Re3+ {[%clk 0:00:38]} 50. Kg2 {[%clk 0:00:20]}  Re2+ {[%clk 0:00:38]} 51. Kf1 {[%clk 0:00:20]}  Rc2 {[%clk 0:00:37]} 52. Bd8 {[%clk 0:00:13]}  Rc8 {[%clk 0:00:34]} 53. Be7 {[%clk 0:00:09]}  Re8 {[%clk 0:00:33]} 54. Bf6 {[%clk 0:00:10]}  h4 {[%clk 0:00:32]} 55. Kf2 {[%clk 0:00:09]}  Kg4 {[%clk 0:00:30]} 56. Rd4+ {[%clk 0:00:08]}  Kh5 {[%clk 0:00:30]} 57. Kf3 {[%clk 0:00:06]}  Ra8 {[%clk 0:00:30]} 58. Rd3 {[%clk 0:00:05]}  Ra4 {[%clk 0:00:29]} 59. Kg2 {[%clk 0:00:05]}  Ra2+ {[%clk 0:00:29]} 60. Kh3 {[%clk 0:00:05]}  Ra4 {[%clk 0:00:30]} 61. Re3 {[%clk 0:00:05]}  Rb4 {[%clk 0:00:30]} 62. Be7 {[%clk 0:00:05]}  Rc4 {[%clk 0:00:30]} 63. Rf3 {[%clk 0:00:05]}  Re4 {[%clk 0:00:30]} 64. Bd8 {[%clk 0:00:05]}  Rd4 {[%clk 0:00:30]} 65. Bc7 {[%clk 0:00:04]}  Rc4 {[%clk 0:00:30]} 66. Bb6 {[%clk 0:00:04]}  Kxg5 {[%clk 0:00:30]} 67. Bd8+ {[%clk 0:00:04]}  Kh5 {[%clk 0:00:30]} 68. Rd3 {[%clk 0:00:04]}  g5 {[%clk 0:00:30]} 69. Rd5 {[%clk 0:00:04]}  Rc3+ {[%clk 0:00:29]} 70. Kh2 {[%clk 0:00:03]}  Rg3 {[%clk 0:00:29]} 71. Be7 {[%clk 0:00:03]}  Rg4 {[%clk 0:00:30]} 72. Rc5 {[%clk 0:00:02]}  Kg6 {[%clk 0:00:29]} 73. Rc6+ {[%clk 0:00:01]}  Kf7 {[%clk 0:00:30]} 74. Bd8 {[%clk 0:00:01]}  Rg3 {[%clk 0:00:30]} 75. Rc5 {[%clk 0:00:01]}  Kg6 {[%clk 0:00:30]} 76. Be7 {[%clk 0:00:01]}  Rg4 {[%clk 0:00:28]} 77. Bd8 {[%clk 0:00:01]}  Kf7 {[%clk 0:00:26]} 78. Rc6 {[%clk 0:00:02]}  Rg3 {[%clk 0:00:24]} 79. Rc7+ {[%clk 0:00:02]}  Ke6 {[%clk 0:00:24]} 80. Rc6+ {[%clk 0:00:02]}  Kf5 {[%clk 0:00:25]} 81. Rc5+ {[%clk 0:00:02]}  Kg4 {[%clk 0:00:25]} 82. Rxg5+ {[%clk 0:00:02]}  Kf3 {[%clk 0:00:25]} 83. Rf5+ {[%clk 0:00:01]}  Ke4 {[%clk 0:00:24]} 84. Rf7 {[%clk 0:00:02]}  Rd3 {[%clk 0:00:24]} 85. Bxh4 {[%clk 0:00:02]}  Rd2+ {[%clk 0:00:24]} 86. Kh3 {[%clk 0:00:02]}  Rd1 {[%clk 0:00:24]} 87. Bg3 {[%clk 0:00:03]}  Rh1+ {[%clk 0:00:23]} 88. Kg4 {[%clk 0:00:03]}  Rd1 {[%clk 0:00:24]} 89. Re7+ {[%clk 0:00:04]}  Kd5 {[%clk 0:00:25]} 90. Rd7+ {[%clk 0:00:04]}  Ke4 {[%clk 0:00:25]} 91. Rxd1 {[%clk 0:00:05]}  Ke3 {[%clk 0:00:25]} 92. Rd7 {[%clk 0:00:05]}  Ke2 {[%clk 0:00:25]} 93. Kf4 {[%clk 0:00:05]}  Kf1 {[%clk 0:00:26]} 94. Bh4 {[%clk 0:00:05]}  Kg2 {[%clk 0:00:27]} 95. Bg5 {[%clk 0:00:06]}  Kh3 {[%clk 0:00:28]} 96. Rd4 {[%clk 0:00:06]}  Kh2 {[%clk 0:00:28]} 97. Kg4 {[%clk 0:00:06]}  Kg2 {[%clk 0:00:28]} 98. Rd2+ {[%clk 0:00:06]}  Kh1 {[%clk 0:00:29]} 99. Kg3 {[%clk 0:00:06]} 1-0


[Site "https://www.chess.com"]

[Event "Titled Tuesday Blitz April 19 Late 2022"]
[White "Oparin, Grigoriy"]
[Black "Czopor, Maciej"]
[WhiteFideId "24125890"]
[BlackFideId "21805431"]
[WhiteElo "2665"]
[BlackElo "1999"]
[Result "1-0"]
[Round "10"]
[TimeControl "180+1"]
[Date "2022.04.19"]
[WhiteClock "0:00:21"]
[BlackClock "0:00:02"]

1. e4 {[%clk 0:03:00]}  c5 {[%clk 0:02:57]} 2. Nf3 {[%clk 0:03:00]}  e6 {[%clk 0:02:56]} 3. d4 {[%clk 0:03:00]}  cxd4 {[%clk 0:02:57]} 4. Nxd4 {[%clk 0:03:01]}  Nc6 {[%clk 0:02:57]} 5. Nc3 {[%clk 0:03:01]}  a6 {[%clk 0:02:57]} 6. Be3 {[%clk 0:03:01]}  Nf6 {[%clk 0:02:52]} 7. Qf3 {[%clk 0:03:00]}  d6 {[%clk 0:02:21]} 8. Nxc6 {[%clk 0:02:58]}  bxc6 {[%clk 0:02:19]} 9. O-O-O {[%clk 0:02:58]}  Qa5 {[%clk 0:02:12]} 10. Bc4 {[%clk 0:02:55]}  Be7 {[%clk 0:02:05]} 11. e5 {[%clk 0:02:33]}  Nd5 {[%clk 0:01:54]} 12. exd6 {[%clk 0:02:33]}  Bxd6 {[%clk 0:01:35]} 13. Nxd5 {[%clk 0:02:33]}  cxd5 {[%clk 0:01:33]} 14. Bxd5 {[%clk 0:02:34]}  exd5 {[%clk 0:01:20]} 15. Rxd5 {[%clk 0:02:35]}  Qxa2 {[%clk 0:01:18]} 16. Rxd6 {[%clk 0:02:35]}  O-O {[%clk 0:01:08]} 17. Qxa8 {[%clk 0:02:22]}  Qa1+ {[%clk 0:01:07]} 18. Kd2 {[%clk 0:02:22]}  Qxh1 {[%clk 0:01:08]} 19. Qd5 {[%clk 0:01:36]}  Be6 {[%clk 0:01:01]} 20. Qg5 {[%clk 0:01:27]}  Qxh2 {[%clk 0:00:29]} 21. Bd4 {[%clk 0:00:36]}  f6 {[%clk 0:00:29]} 22. Qg3 {[%clk 0:00:33]}  Qxg3 {[%clk 0:00:28]} 23. fxg3 {[%clk 0:00:34]}  Bc4 {[%clk 0:00:21]} 24. b3 {[%clk 0:00:30]}  Bf1 {[%clk 0:00:20]} 25. Ke1 {[%clk 0:00:30]}  Bxg2 {[%clk 0:00:18]} 26. Rxa6 {[%clk 0:00:30]}  Rc8 {[%clk 0:00:12]} 27. c4 {[%clk 0:00:24]}  Rb8 {[%clk 0:00:09]} 28. Ra3 {[%clk 0:00:24]}  Kf7 {[%clk 0:00:08]} 29. Kd2 {[%clk 0:00:24]}  g5 {[%clk 0:00:07]} 30. Kc3 {[%clk 0:00:22]}  f5 {[%clk 0:00:03]} 31. Ra6 {[%clk 0:00:21]}  Be4 {[%clk 0:00:02]} 32. Rh6 {[%clk 0:00:20]}  Ke7 {[%clk 0:00:02]} 33. Rxh7+ {[%clk 0:00:20]}  Ke6 {[%clk 0:00:02]} 34. Rh6+ {[%clk 0:00:21]}  Kd7 {[%clk 0:00:02]} 35. b4 {[%clk 0:00:22]}  Ra8 {[%clk 0:00:02]} 36. b5 {[%clk 0:00:22]}  Ra1 {[%clk 0:00:02]} 37. Be5 {[%clk 0:00:21]}  Rc1+ {[%clk 0:00:02]} 38. Kd4 {[%clk 0:00:21]}  Rb1 {[%clk 0:00:02]} 39. Kc5 {[%clk 0:00:21]}  Bd3 {[%clk 0:00:02]} 40. Rd6+ {[%clk 0:00:21]}  Ke7 {[%clk 0:00:02]} 41. Rxd3 {[%clk 0:00:21]} 1-0


[Site "https://www.chess.com"]

[Event "Titled Tuesday Blitz April 19 Late 2022"]
[White "Petrova, Irina"]
[Black "Przybylski, Wojciech"]
[WhiteFideId "14124122"]
[BlackFideId "1117599"]
[WhiteElo "1993"]
[BlackElo "2133"]
[Result "0-1"]
[Round "10"]
[TimeControl "180+1"]
[Date "2022.04.19"]
[WhiteClock "0:00:01"]
[BlackClock "0:00:10"]

1. e4 {[%clk 0:03:00]}  e5 {[%clk 0:02:58]} 2. Nf3 {[%clk 0:02:58]}  Nf6 {[%clk 0:02:59]} 3. Nxe5 {[%clk 0:02:56]}  d6 {[%clk 0:02:59]} 4. Nf3 {[%clk 0:02:56]}  Nxe4 {[%clk 0:02:59]} 5. Bd3 {[%clk 0:02:57]}  Nc5 {[%clk 0:02:57]} 6. Be2 {[%clk 0:02:49]}  d5 {[%clk 0:02:57]} 7. O-O {[%clk 0:02:49]}  Be7 {[%clk 0:02:56]} 8. Re1 {[%clk 0:02:49]}  O-O {[%clk 0:02:56]} 9. Bf1 {[%clk 0:02:46]}  Bg4 {[%clk 0:02:53]} 10. h3 {[%clk 0:02:45]}  Bh5 {[%clk 0:02:52]} 11. d4 {[%clk 0:02:41]}  Ne6 {[%clk 0:02:47]} 12. c3 {[%clk 0:02:32]}  Nd7 {[%clk 0:02:45]} 13. Be3 {[%clk 0:02:31]}  Nf6 {[%clk 0:02:45]} 14. Nbd2 {[%clk 0:02:31]}  Ne4 {[%clk 0:02:44]} 15. Qb3 {[%clk 0:02:30]}  c5 {[%clk 0:02:14]} 16. dxc5 {[%clk 0:01:48]}  N6xc5 {[%clk 0:02:13]} 17. Qc2 {[%clk 0:01:48]}  Nxd2 {[%clk 0:02:05]} 18. Nxd2 {[%clk 0:01:47]}  Bg6 {[%clk 0:02:04]} 19. Qd1 {[%clk 0:01:44]}  Nd3 {[%clk 0:02:04]} 20. Bxd3 {[%clk 0:01:42]}  Bxd3 {[%clk 0:02:04]} 21. Nf3 {[%clk 0:01:40]}  Be4 {[%clk 0:01:57]} 22. Nd4 {[%clk 0:01:40]}  Bd6 {[%clk 0:01:47]} 23. Qd2 {[%clk 0:01:25]}  a6 {[%clk 0:01:33]} 24. Bf4 {[%clk 0:01:24]}  Bc5 {[%clk 0:01:32]} 25. Rad1 {[%clk 0:01:21]}  Qh4 {[%clk 0:01:23]} 26. Nb3 {[%clk 0:01:17]}  Bb6 {[%clk 0:01:22]} 27. Be3 {[%clk 0:01:17]}  Bc7 {[%clk 0:01:21]} 28. Nd4 {[%clk 0:01:12]}  Rfe8 {[%clk 0:01:09]} 29. Bg5 {[%clk 0:01:06]}  Qh5 {[%clk 0:01:08]} 30. Bf4 {[%clk 0:01:06]}  Bb6 {[%clk 0:01:06]} 31. Bg3 {[%clk 0:01:02]}  h6 {[%clk 0:00:52]} 32. Re2 {[%clk 0:00:59]}  Qg6 {[%clk 0:00:42]} 33. Rde1 {[%clk 0:00:54]}  h5 {[%clk 0:00:37]} 34. f3 {[%clk 0:00:34]}  Qxg3 {[%clk 0:00:30]} 35. fxe4 {[%clk 0:00:34]}  dxe4 {[%clk 0:00:30]} 36. Rxe4 {[%clk 0:00:32]}  Rxe4 {[%clk 0:00:29]} 37. Rxe4 {[%clk 0:00:33]}  Rd8 {[%clk 0:00:27]} 38. Qe2 {[%clk 0:00:18]}  g6 {[%clk 0:00:18]} 39. Re8+ {[%clk 0:00:18]}  Kg7 {[%clk 0:00:18]} 40. Rxd8 {[%clk 0:00:12]}  Bxd8 {[%clk 0:00:18]} 41. Qf2 {[%clk 0:00:10]}  Qg5 {[%clk 0:00:16]} 42. Qe2 {[%clk 0:00:09]}  Bf6 {[%clk 0:00:15]} 43. Nf3 {[%clk 0:00:07]}  Qc1+ {[%clk 0:00:14]} 44. Kh2 {[%clk 0:00:08]}  Qf4+ {[%clk 0:00:14]} 45. Kg1 {[%clk 0:00:07]}  h4 {[%clk 0:00:14]} 46. Kf2 {[%clk 0:00:07]}  Qg3+ {[%clk 0:00:13]} 47. Kg1 {[%clk 0:00:07]}  Qf4 {[%clk 0:00:13]} 48. Kf2 {[%clk 0:00:07]}  b5 {[%clk 0:00:12]} 49. Qe3 {[%clk 0:00:05]}  Qf5 {[%clk 0:00:12]} 50. Qe2 {[%clk 0:00:04]}  Qd5 {[%clk 0:00:12]} 51. Kg1 {[%clk 0:00:04]}  Qxa2 {[%clk 0:00:12]} 52. Qd2 {[%clk 0:00:03]}  Qb1+ {[%clk 0:00:11]} 53. Kh2 {[%clk 0:00:02]}  Qe4 {[%clk 0:00:11]} 54. Qf2 {[%clk 0:00:02]}  Qf4+ {[%clk 0:00:10]} 55. Kg1 {[%clk 0:00:01]}  a5 {[%clk 0:00:10]} 0-1


[Site "https://www.chess.com"]

[Event "Titled Tuesday Blitz April 19 Late 2022"]
[White "Petrovic, Aleksa"]
[Black "Soysal, Serkan"]
[WhiteFideId "967629"]
[BlackFideId "6349250"]
[WhiteElo "2198"]
[BlackElo "2440"]
[Result "0-1"]
[Round "10"]
[TimeControl "180+1"]
[Date "2022.04.19"]
[WhiteClock "0:00:02"]
[BlackClock "0:00:06"]

1. d4 {[%clk 0:03:00]}  Nf6 {[%clk 0:02:59]} 2. c4 {[%clk 0:03:00]}  g6 {[%clk 0:02:58]} 3. Nc3 {[%clk 0:03:00]}  d5 {[%clk 0:02:58]} 4. Nf3 {[%clk 0:02:59]}  Bg7 {[%clk 0:02:58]} 5. Qa4+ {[%clk 0:02:59]}  Bd7 {[%clk 0:02:56]} 6. Qb3 {[%clk 0:02:59]}  dxc4 {[%clk 0:02:57]} 7. Qxc4 {[%clk 0:03:00]}  O-O {[%clk 0:02:57]} 8. Bf4 {[%clk 0:03:00]}  b5 {[%clk 0:02:52]} 9. Nxb5 {[%clk 0:02:42]}  Nc6 {[%clk 0:02:42]} 10. e3 {[%clk 0:02:33]}  Qb8 {[%clk 0:02:24]} 11. Qc1 {[%clk 0:02:19]}  Nd5 {[%clk 0:02:20]} 12. Bg3 {[%clk 0:02:12]}  Ncb4 {[%clk 0:02:12]} 13. Nc3 {[%clk 0:01:47]}  Bf5 {[%clk 0:01:47]} 14. e4 {[%clk 0:01:45]}  Nxc3 {[%clk 0:01:39]} 15. bxc3 {[%clk 0:01:39]}  Bxe4 {[%clk 0:01:40]} 16. cxb4 {[%clk 0:01:37]}  Bxf3 {[%clk 0:01:13]} 17. gxf3 {[%clk 0:01:37]}  Qxb4+ {[%clk 0:00:54]} 18. Qd2 {[%clk 0:01:36]}  Qa4 {[%clk 0:00:46]} 19. Rd1 {[%clk 0:01:18]}  Rfd8 {[%clk 0:00:42]} 20. d5 {[%clk 0:01:05]}  Qa3 {[%clk 0:00:40]} 21. Qc2 {[%clk 0:00:39]}  Bc3+ {[%clk 0:00:39]} 22. Ke2 {[%clk 0:00:38]}  Rab8 {[%clk 0:00:35]} 23. Rb1 {[%clk 0:00:30]}  Rxb1 {[%clk 0:00:26]} 24. Qxb1 {[%clk 0:00:31]}  Rxd5 {[%clk 0:00:26]} 25. f4 {[%clk 0:00:15]}  Bb4 {[%clk 0:00:16]} 26. Bg2 {[%clk 0:00:12]}  Rd2+ {[%clk 0:00:15]} 27. Kf1 {[%clk 0:00:12]}  Rb2 {[%clk 0:00:10]} 28. Qd1 {[%clk 0:00:10]}  Rd2 {[%clk 0:00:08]} 29. Qb1 {[%clk 0:00:05]}  Rb2 {[%clk 0:00:03]} 30. Qd1 {[%clk 0:00:05]}  Rxa2 {[%clk 0:00:03]} 31. Bf3 {[%clk 0:00:04]}  Ra1 {[%clk 0:00:03]} 32. Kg2 {[%clk 0:00:04]}  Rxd1 {[%clk 0:00:04]} 33. Rxd1 {[%clk 0:00:05]}  Bd6 {[%clk 0:00:04]} 34. Rb1 {[%clk 0:00:04]}  Qc5 {[%clk 0:00:04]} 35. Rb8+ {[%clk 0:00:04]}  Kg7 {[%clk 0:00:04]} 36. h4 {[%clk 0:00:04]}  a5 {[%clk 0:00:05]} 37. h5 {[%clk 0:00:04]}  gxh5 {[%clk 0:00:06]} 38. Be2 {[%clk 0:00:03]}  h4 {[%clk 0:00:06]} 39. f5 {[%clk 0:00:01]}  hxg3 {[%clk 0:00:06]} 40. fxg3 {[%clk 0:00:02]} 0-1


[Site "https://www.chess.com"]

[Event "Titled Tuesday Blitz April 19 Late 2022"]
[White "Pinheiro, Iung Alicio de O."]
[Black "Zherebtsova, Alexandra"]
[WhiteFideId "2104350"]
[BlackFideId "24129518"]
[WhiteElo "2590"]
[BlackElo "2025"]
[Result "1-0"]
[Round "10"]
[TimeControl "180+1"]
[Date "2022.04.19"]
[WhiteClock "0:00:47"]
[BlackClock "0:00:01"]

1. c4 {[%clk 0:02:59]}  e5 {[%clk 0:02:42]} 2. g3 {[%clk 0:02:59]}  f5 {[%clk 0:02:39]} 3. d4 {[%clk 0:02:58]}  e4 {[%clk 0:02:39]} 4. Nh3 {[%clk 0:02:57]}  g6 {[%clk 0:02:34]} 5. Bg2 {[%clk 0:02:56]}  Bg7 {[%clk 0:02:34]} 6. Nc3 {[%clk 0:02:55]}  Nf6 {[%clk 0:02:34]} 7. Bg5 {[%clk 0:02:55]}  c6 {[%clk 0:02:16]} 8. Qb3 {[%clk 0:02:54]}  h6 {[%clk 0:02:10]} 9. Bxf6 {[%clk 0:02:50]}  Qxf6 {[%clk 0:02:09]} 10. e3 {[%clk 0:02:49]}  g5 {[%clk 0:02:05]} 11. Ng1 {[%clk 0:02:42]}  d6 {[%clk 0:01:59]} 12. Nge2 {[%clk 0:02:39]}  Nd7 {[%clk 0:01:54]} 13. g4 {[%clk 0:02:38]}  fxg4 {[%clk 0:01:13]} 14. Nxe4 {[%clk 0:02:25]}  Qg6 {[%clk 0:00:47]} 15. N2g3 {[%clk 0:02:16]}  Nb6 {[%clk 0:00:35]} 16. c5 {[%clk 0:02:11]}  dxc5 {[%clk 0:00:26]} 17. dxc5 {[%clk 0:02:09]}  Be6 {[%clk 0:00:13]} 18. Qc2 {[%clk 0:02:02]}  O-O {[%clk 0:00:08]} 19. cxb6 {[%clk 0:02:00]}  axb6 {[%clk 0:00:08]} 20. a3 {[%clk 0:01:10]}  Rae8 {[%clk 0:00:05]} 21. Qe2 {[%clk 0:01:03]}  h5 {[%clk 0:00:05]} 22. Nc3 {[%clk 0:00:56]}  h4 {[%clk 0:00:03]} 23. Be4 {[%clk 0:00:51]}  Qf6 {[%clk 0:00:02]} 24. Nh5 {[%clk 0:00:50]}  Qh6 {[%clk 0:00:01]} 25. Nxg7 {[%clk 0:00:50]}  Qxg7 {[%clk 0:00:01]} 26. Bd3 {[%clk 0:00:47]} 1-0


[Site "https://www.chess.com"]

[Event "Titled Tuesday Blitz April 19 Late 2022"]
[White "Reprintsev, Alexander"]
[Black "Potapova, Margarita"]
[WhiteFideId "14100541"]
[BlackFideId "14126869"]
[WhiteElo "2108"]
[BlackElo "2216"]
[Result "1-0"]
[Round "10"]
[TimeControl "180+1"]
[Date "2022.04.19"]
[WhiteClock "0:00:45"]
[BlackClock "0:00:21"]

1. e4 {[%clk 0:02:56]}  c5 {[%clk 0:02:59]} 2. b3 {[%clk 0:02:54]}  Nc6 {[%clk 0:02:39]} 3. Bb2 {[%clk 0:02:53]}  d6 {[%clk 0:02:36]} 4. Bb5 {[%clk 0:02:53]}  Bd7 {[%clk 0:02:34]} 5. Ne2 {[%clk 0:02:53]}  e6 {[%clk 0:02:34]} 6. O-O {[%clk 0:02:44]}  Nf6 {[%clk 0:02:34]} 7. d3 {[%clk 0:02:38]}  Be7 {[%clk 0:02:34]} 8. Nd2 {[%clk 0:02:32]}  O-O {[%clk 0:02:34]} 9. Ng3 {[%clk 0:02:32]}  a6 {[%clk 0:02:28]} 10. Bxc6 {[%clk 0:02:32]}  Bxc6 {[%clk 0:02:28]} 11. f4 {[%clk 0:02:27]}  b5 {[%clk 0:02:21]} 12. Nh5 {[%clk 0:02:25]}  Nxh5 {[%clk 0:02:20]} 13. Qxh5 {[%clk 0:02:25]}  Bf6 {[%clk 0:02:15]} 14. e5 {[%clk 0:02:25]}  dxe5 {[%clk 0:02:15]} 15. fxe5 {[%clk 0:02:25]}  Be7 {[%clk 0:02:02]} 16. Rae1 {[%clk 0:02:16]}  g6 {[%clk 0:01:51]} 17. Qg4 {[%clk 0:02:07]}  h5 {[%clk 0:01:51]} 18. Qe2 {[%clk 0:02:06]}  Bh4 {[%clk 0:01:37]} 19. Rd1 {[%clk 0:02:02]}  Kg7 {[%clk 0:01:33]} 20. Ne4 {[%clk 0:02:01]}  Be7 {[%clk 0:01:32]} 21. Nf6 {[%clk 0:01:59]}  Bxf6 {[%clk 0:01:26]} 22. exf6+ {[%clk 0:01:59]}  Kh7 {[%clk 0:01:26]} 23. c4 {[%clk 0:01:46]}  Bb7 {[%clk 0:01:13]} 24. Qe3 {[%clk 0:01:45]}  Qd7 {[%clk 0:01:11]} 25. Qxc5 {[%clk 0:01:40]}  Rac8 {[%clk 0:01:09]} 26. Qg5 {[%clk 0:01:40]}  Qc6 {[%clk 0:01:06]} 27. Bc1 {[%clk 0:01:40]}  Qc5+ {[%clk 0:00:58]} 28. Qxc5 {[%clk 0:01:37]}  Rxc5 {[%clk 0:00:58]} 29. Ba3 {[%clk 0:01:33]}  Rg5 {[%clk 0:00:58]} 30. Rf2 {[%clk 0:01:25]}  Rd8 {[%clk 0:00:58]} 31. d4 {[%clk 0:01:20]}  bxc4 {[%clk 0:00:52]} 32. bxc4 {[%clk 0:01:20]}  Ra5 {[%clk 0:00:53]} 33. Bb4 {[%clk 0:01:17]}  Ra4 {[%clk 0:00:52]} 34. Rb2 {[%clk 0:01:12]}  Be4 {[%clk 0:00:48]} 35. Kf2 {[%clk 0:00:57]}  a5 {[%clk 0:00:38]} 36. Be7 {[%clk 0:00:56]}  Rd7 {[%clk 0:00:32]} 37. Ke3 {[%clk 0:00:49]}  Bf5 {[%clk 0:00:29]} 38. Rc1 {[%clk 0:00:46]}  Ra3+ {[%clk 0:00:21]} 39. Bxa3 {[%clk 0:00:45]} 1-0


[Site "https://www.chess.com"]

[Event "Titled Tuesday Blitz April 19 Late 2022"]
[White "Ricaurte Lopez, Juan Carlos"]
[Black "Mirza, Diana"]
[WhiteFideId "3600327"]
[BlackFideId "2503999"]
[WhiteElo "2209"]
[BlackElo "1813"]
[Result "1-0"]
[Round "10"]
[TimeControl "180+1"]
[Date "2022.04.19"]
[WhiteClock "0:00:15"]
[BlackClock "0:00:03"]

1. e4 {[%clk 0:03:00]}  d5 {[%clk 0:02:38]} 2. exd5 {[%clk 0:02:39]}  Qxd5 {[%clk 0:02:39]} 3. Nc3 {[%clk 0:02:38]}  Qd8 {[%clk 0:02:40]} 4. d4 {[%clk 0:02:37]}  Nf6 {[%clk 0:02:41]} 5. Bc4 {[%clk 0:02:36]}  a6 {[%clk 0:02:40]} 6. Nf3 {[%clk 0:02:36]}  b5 {[%clk 0:02:40]} 7. Bb3 {[%clk 0:02:34]}  Bb7 {[%clk 0:02:40]} 8. Ne5 {[%clk 0:02:32]}  e6 {[%clk 0:02:40]} 9. O-O {[%clk 0:02:29]}  Bd6 {[%clk 0:02:40]} 10. Bg5 {[%clk 0:02:27]}  O-O {[%clk 0:02:39]} 11. f4 {[%clk 0:02:26]}  h6 {[%clk 0:02:39]} 12. Bh4 {[%clk 0:02:23]}  Nbd7 {[%clk 0:02:37]} 13. Nxd7 {[%clk 0:02:17]}  Qxd7 {[%clk 0:02:36]} 14. Bxf6 {[%clk 0:02:16]}  gxf6 {[%clk 0:02:37]} 15. Qh5 {[%clk 0:02:10]}  Kh7 {[%clk 0:02:37]} 16. f5 {[%clk 0:02:04]}  Rg8 {[%clk 0:02:12]} 17. Rf2 {[%clk 0:02:00]}  Qc6 {[%clk 0:02:08]} 18. d5 {[%clk 0:01:36]}  Qb6 {[%clk 0:01:41]} 19. Ne4 {[%clk 0:01:16]}  Be5 {[%clk 0:01:32]} 20. Qxf7+ {[%clk 0:01:02]}  Rg7 {[%clk 0:01:32]} 21. Nxf6+ {[%clk 0:00:59]}  Kh8 {[%clk 0:01:17]} 22. Qh5 {[%clk 0:00:46]}  Bxf6 {[%clk 0:01:01]} 23. Qxh6+ {[%clk 0:00:45]}  Kg8 {[%clk 0:01:01]} 24. Qxf6 {[%clk 0:00:44]}  exd5 {[%clk 0:00:42]} 25. Qxb6 {[%clk 0:00:39]}  cxb6 {[%clk 0:00:43]} 26. Rd1 {[%clk 0:00:35]}  Rd8 {[%clk 0:00:31]} 27. f6 {[%clk 0:00:27]}  Rg5 {[%clk 0:00:25]} 28. h3 {[%clk 0:00:22]}  Kf8 {[%clk 0:00:20]} 29. g4 {[%clk 0:00:21]}  a5 {[%clk 0:00:19]} 30. a3 {[%clk 0:00:20]}  d4 {[%clk 0:00:17]} 31. Rf4 {[%clk 0:00:18]}  Bd5 {[%clk 0:00:11]} 32. Rfxd4 {[%clk 0:00:16]}  Rd7 {[%clk 0:00:01]} 33. Rxd5 {[%clk 0:00:16]}  Rdxd5 {[%clk 0:00:01]} 34. Rxd5 {[%clk 0:00:16]}  Rxd5 {[%clk 0:00:02]} 35. Bxd5 {[%clk 0:00:15]}  Ke8 {[%clk 0:00:02]} 36. g5 {[%clk 0:00:15]}  Kf8 {[%clk 0:00:03]} 1-0


[Site "https://www.chess.com"]